{"text_format":"1","workbook":"xlsx","n_sheets":2,"sheets":["Personal","Sheet2"],"not_rendered":{"charts":0,"images":0,"macros":0,"external_links":0,"defined_names":2,"comments":0,"pivot_tables":0},"unopened":[],"bounds":{"document_bytes":16777216,"sheet_cells":100000,"rows_first":2000,"rows_last":500,"rows_between":2000,"halvings":0,"cell_chars":16384,"cell_head_chars":4096},"cells_cut":0,"cells_raw":0,"read":"whole","date_system":"1900"}

{"sheet":"Personal","index":0,"n_rows":38,"n_cols":15,"rows_kept":38,"cut":false,"hidden":false,"merged":[[25,6,25,8],[25,1,25,3],[29,1,34,1],[35,1,35,3],[35,6,35,8],[37,6,37,8],[5,1,5,8],[15,1,15,8],[27,1,27,8],[1,11,1,12],[7,11,7,12],[15,11,15,12],[27,11,27,12],[1,1,3,5],[17,1,24,1],[7,1,12,1],[1,6,3,9],[34,11,34,12],[35,12,35,14],[13,1,13,3],[13,6,13,8]]}
[]
[null,"Personal Plan for:",null,null,null,null,"Type Here You Name  ",null,null,null,null,"CORE",null,"Units"]
[null,null,null,null,null,null,null,null,null,null,null,"MATH 511","Functional Analysis",3]
[null,null,null,null,null,null,null,null,null,null,null,"MATH 512","Probabilistic Methods and Measure Theory",3]
[null,null,null,null,null,null,null,null,null,null,null,"MATH 513","Advanced Algebra",3]
[null,"CORE",null,null,null,null,null,null,null,null,null,"MATH 599","Graduate Seminar",1]
[null,"Category","Class","List","Class Name","Units","Semester Taken","With professor","Note"]
[null,"Need 11",null,{"$f":"IFERROR(VLOOKUP(C8,Sheet2!$B$5:$F$29,4,FALSE),\"\")","v":""},{"$f":"IFERROR(VLOOKUP(C8,Sheet2!$B$5:$F$29,2,FALSE),\"\")","v":""},{"$f":"IFERROR(VLOOKUP(C8,Sheet2!$B$5:$F$29,3,FALSE),\"\")","v":""},null,null,{"$f":"IFERROR(VLOOKUP(C8,Sheet2!$B$5:$F$29,5,FALSE),\"\")","v":""},null,null,"List A (at least two)"]
[null,null,null,{"$f":"IFERROR(VLOOKUP(C9,Sheet2!$B$5:$F$29,4,FALSE),\"\")","v":""},{"$f":"IFERROR(VLOOKUP(C9,Sheet2!$B$5:$F$29,2,FALSE),\"\")","v":""},{"$f":"IFERROR(VLOOKUP(C9,Sheet2!$B$5:$F$29,3,FALSE),\"\")","v":""},null,null,{"$f":"IFERROR(VLOOKUP(C9,Sheet2!$B$5:$F$29,5,FALSE),\"\")","v":""},null,null,"MATH 570","Combinatorics",3]
[null,null,null,{"$f":"IFERROR(VLOOKUP(C10,Sheet2!$B$5:$F$29,4,FALSE),\"\")","v":""},{"$f":"IFERROR(VLOOKUP(C10,Sheet2!$B$5:$F$29,2,FALSE),\"\")","v":""},{"$f":"IFERROR(VLOOKUP(C10,Sheet2!$B$5:$F$29,3,FALSE),\"\")","v":""},null,null,{"$f":"IFERROR(VLOOKUP(C10,Sheet2!$B$5:$F$29,5,FALSE),\"\")","v":""},null,null,"MATH 582","Number Theory and Cryptography",3]
[null,null,null,{"$f":"IFERROR(VLOOKUP(C11,Sheet2!$B$5:$F$29,4,FALSE),\"\")","v":""},{"$f":"IFERROR(VLOOKUP(C11,Sheet2!$B$5:$F$29,2,FALSE),\"\")","v":""},{"$f":"IFERROR(VLOOKUP(C11,Sheet2!$B$5:$F$29,3,FALSE),\"\")","v":""},null,null,{"$f":"IFERROR(VLOOKUP(C11,Sheet2!$B$5:$F$29,5,FALSE),\"\")","v":""},null,null,"MATH 584","Algebraic Geometry and Coding Theory",3]
[null,null,null,{"$f":"IFERROR(VLOOKUP(C12,Sheet2!$B$5:$F$29,4,FALSE),\"\")","v":""},{"$f":"IFERROR(VLOOKUP(C12,Sheet2!$B$5:$F$29,2,FALSE),\"\")","v":""},{"$f":"IFERROR(VLOOKUP(C12,Sheet2!$B$5:$F$29,3,FALSE),\"\")","v":""},null,null,{"$f":"IFERROR(VLOOKUP(C12,Sheet2!$B$5:$F$29,5,FALSE),\"\")","v":""},null,null,"MATH 587","Markov Chains and Markov Processes",3]
[null,null,null,{"$f":"IFERROR(VLOOKUP(C13,Sheet2!$B$30:$F$53,4,FALSE),\"\")","v":""},{"$f":"IFERROR(VLOOKUP(C13,Sheet2!$B$30:$F$53,2,FALSE),\"\")","v":""},null,null,null,null,null,null,"MATH 588","Stochastic Analysis",3]
[null,null,null,null,"Total",{"$f":"SUM(F6:F13)","v":0},"Seminar can be taken maximum twice",null,null,null,null,"MATH 590","Graduate Topics in Mathematics",3]
[]
[null,"ELECTIVE",null,null,null,null,null,null,null,null,null,"List B (at most three)"]
[null,"Category","Class","List","Class Name","Units","Semester Taken","With professor","Note",null,null,"MATH 555","Actuarial Sciences",3]
[null,"Need 15",null,{"$f":"IFERROR(VLOOKUP(C18,Sheet2!$B$5:$F$29,4,FALSE),\"\")","v":""},{"$f":"IFERROR(VLOOKUP(C18,Sheet2!$B$5:$F$29,2,FALSE),\"\")","v":""},{"$f":"IFERROR(VLOOKUP(C18,Sheet2!$B$5:$F$29,3,FALSE),\"\")","v":""},null,null,{"$f":"IFERROR(VLOOKUP(C18,Sheet2!$B$5:$F$29,5,FALSE),\"\")","v":""},null,null,"MATH 565","Research in Mathematics Education",3]
[null,null,null,{"$f":"IFERROR(VLOOKUP(C19,Sheet2!$B$5:$F$29,4,FALSE),\"\")","v":""},{"$f":"IFERROR(VLOOKUP(C19,Sheet2!$B$5:$F$29,2,FALSE),\"\")","v":""},{"$f":"IFERROR(VLOOKUP(C19,Sheet2!$B$5:$F$29,3,FALSE),\"\")","v":""},null,null,{"$f":"IFERROR(VLOOKUP(C19,Sheet2!$B$5:$F$29,5,FALSE),\"\")","v":""},null,null,"PHYS 510","Advanced Image Analysis Techniques",3,"(Cross-listed as COMP 510, MATH 510)"]
[null,null,null,{"$f":"IFERROR(VLOOKUP(C20,Sheet2!$B$5:$F$29,4,FALSE),\"\")","v":""},{"$f":"IFERROR(VLOOKUP(C20,Sheet2!$B$5:$F$29,2,FALSE),\"\")","v":""},{"$f":"IFERROR(VLOOKUP(C20,Sheet2!$B$5:$F$29,3,FALSE),\"\")","v":""},null,null,{"$f":"IFERROR(VLOOKUP(C20,Sheet2!$B$5:$F$29,5,FALSE),\"\")","v":""},null,null,"PHYS 546","Pattern Recognition",3,"(Cross-listed as MATH 546, COMP 546) "]
[null,null,null,{"$f":"IFERROR(VLOOKUP(C21,Sheet2!$B$5:$F$29,4,FALSE),\"\")","v":""},{"$f":"IFERROR(VLOOKUP(C21,Sheet2!$B$5:$F$29,2,FALSE),\"\")","v":""},{"$f":"IFERROR(VLOOKUP(C21,Sheet2!$B$5:$F$29,3,FALSE),\"\")","v":""},null,null,{"$f":"IFERROR(VLOOKUP(C21,Sheet2!$B$5:$F$29,5,FALSE),\"\")","v":""},null,null,"COMP 554","Algorithms",3,"(Cross-listed as MATH 554)"]
[null,null,null,{"$f":"IFERROR(VLOOKUP(C22,Sheet2!$B$5:$F$29,4,FALSE),\"\")","v":""},{"$f":"IFERROR(VLOOKUP(C22,Sheet2!$B$5:$F$29,2,FALSE),\"\")","v":""},{"$f":"IFERROR(VLOOKUP(C22,Sheet2!$B$5:$F$29,3,FALSE),\"\")","v":""},null,null,{"$f":"IFERROR(VLOOKUP(C22,Sheet2!$B$5:$F$29,5,FALSE),\"\")","v":""},null,null,"COMP 569","Artificial Intelligence",3]
[null,null,null,{"$f":"IFERROR(VLOOKUP(C23,Sheet2!$B$5:$F$29,4,FALSE),\"\")","v":""},{"$f":"IFERROR(VLOOKUP(C23,Sheet2!$B$5:$F$29,2,FALSE),\"\")","v":""},{"$f":"IFERROR(VLOOKUP(C23,Sheet2!$B$5:$F$29,3,FALSE),\"\")","v":""},null,null,{"$f":"IFERROR(VLOOKUP(C23,Sheet2!$B$5:$F$29,5,FALSE),\"\")","v":""},null,null,"COMP 571","Biologically Inspired Computing",3]
[null,null,null,{"$f":"IFERROR(VLOOKUP(C24,Sheet2!$B$5:$F$29,4,FALSE),\"\")","v":""},{"$f":"IFERROR(VLOOKUP(C24,Sheet2!$B$5:$F$29,2,FALSE),\"\")","v":""},{"$f":"IFERROR(VLOOKUP(C24,Sheet2!$B$5:$F$29,3,FALSE),\"\")","v":""},null,null,{"$f":"IFERROR(VLOOKUP(C24,Sheet2!$B$5:$F$29,5,FALSE),\"\")","v":""},null,null,"COMP 572","Neural Networks Units",3]
[null,null,null,{"$f":"IFERROR(VLOOKUP(C25,Sheet2!$B$30:$F$53,4,FALSE),\"\")","v":""},{"$f":"IFERROR(VLOOKUP(C25,Sheet2!$B$30:$F$53,2,FALSE),\"\")","v":""},null,null,null,null,null,null,"COMP 575","Multi-Agent Systems",3]
[null,null,null,null,"Total",{"$f":"SUM(F16:F25)","v":0},">=2 classes from List A and <= 3 classes from List B.",null,null,null,null,"COMP 578","Data Mining",3]
[]
[null,"THESIS",null,null,null,null,null,null,null,null,null,"THESIS"]
[null,"Category","Class","List","Class Name","Units","Semester Taken","With professor","Note",null,null,"MATH 597","Master Thesis"," "]
[null,"Need 6",null,{"$f":"IFERROR(VLOOKUP(C30,Sheet2!$B$5:$F$29,4,FALSE),\"\")","v":""},{"$f":"IFERROR(VLOOKUP(C30,Sheet2!$B$5:$F$29,2,FALSE),\"\")","v":""},null,null,null,{"$f":"IFERROR(VLOOKUP(C30,Sheet2!$B$5:$F$29,5,FALSE),\"\")","v":""},null,null,"MATH 598","Master Thesis"," "]
[null,null,null,{"$f":"IFERROR(VLOOKUP(C31,Sheet2!$B$5:$F$29,4,FALSE),\"\")","v":""},{"$f":"IFERROR(VLOOKUP(C31,Sheet2!$B$5:$F$29,2,FALSE),\"\")","v":""},null,null,null,{"$f":"IFERROR(VLOOKUP(C31,Sheet2!$B$5:$F$29,5,FALSE),\"\")","v":""}]
[null,null,null,{"$f":"IFERROR(VLOOKUP(C32,Sheet2!$B$5:$F$29,4,FALSE),\"\")","v":""},{"$f":"IFERROR(VLOOKUP(C32,Sheet2!$B$5:$F$29,2,FALSE),\"\")","v":""},null,null,null,{"$f":"IFERROR(VLOOKUP(C32,Sheet2!$B$5:$F$29,5,FALSE),\"\")","v":""}]
[null,null,null,{"$f":"IFERROR(VLOOKUP(C33,Sheet2!$B$5:$F$29,4,FALSE),\"\")","v":""},{"$f":"IFERROR(VLOOKUP(C33,Sheet2!$B$5:$F$29,2,FALSE),\"\")","v":""},null,null,null,{"$f":"IFERROR(VLOOKUP(C33,Sheet2!$B$5:$F$29,5,FALSE),\"\")","v":""}]
[null,null,null,{"$f":"IFERROR(VLOOKUP(C34,Sheet2!$B$5:$F$29,4,FALSE),\"\")","v":""},{"$f":"IFERROR(VLOOKUP(C34,Sheet2!$B$5:$F$29,2,FALSE),\"\")","v":""},null,null,null,{"$f":"IFERROR(VLOOKUP(C34,Sheet2!$B$5:$F$29,5,FALSE),\"\")","v":""}]
[null,null,null,{"$f":"IFERROR(VLOOKUP(C35,Sheet2!$B$5:$F$29,4,FALSE),\"\")","v":""},{"$f":"IFERROR(VLOOKUP(C35,Sheet2!$B$5:$F$29,2,FALSE),\"\")","v":""},null,null,null,{"$f":"IFERROR(VLOOKUP(C35,Sheet2!$B$5:$F$29,5,FALSE),\"\")","v":""},null,null,"INDEPENDENT STUDIES"]
[null,null,null,null,"Total",{"$f":"SUM(F28:F35)","v":0},"Maximum 9 units for thesis",null,null,null,null,"MATH 594","If it is used to fullfill an entry requirement, it  does not count for units towards your graduation"]
[]
[null,null,null,null,"Grand Total of Units",{"$f":"SUM(F14+F26+F36)","v":0},"Yes, you can exceed 32 units"]

{"sheet":"Sheet2","index":1,"n_rows":73,"n_cols":6,"rows_kept":73,"cut":false,"hidden":true,"merged":[]}
[null,null,null," "]
[null,null,null,1]
[null,null,null,2]
[null,null,null,3]
[]
[null,"MATH 570","Combinatorics",3,"List A"," "]
[null,"MATH 582","Number Theory and Cryptography",3,"List A"," "]
[null,"MATH 584","Algebraic Geometry and Coding Theory",3,"List A"," "]
[null,"MATH 587","Markov Chains and Markov Processes",3,"List A"," "]
[null,"MATH 588","Stochastic Analysis",3,"List A"," "]
[null,"MATH 590","Graduate Topics in Mathematics",3,"List A"," "]
[null,"MATH 555","Actuarial Sciences",3,"List B"," "]
[null,"MATH 565","Research in Mathematics Education",3,"List B"," "]
[null,"PHYS 510","Advanced Image Analysis Techniques",3,"List B","(Cross-listed as COMP 510, MATH 510)"]
[null,"PHYS 546","Pattern Recognition",3,"List B","(Cross-listed as MATH 546, COMP 546) "]
[null,"COMP 554","Algorithms",3,"List B","(Cross-listed as MATH 554)"]
[null,"COMP 569","Artificial Intelligence",3,"List B"," "]
[null,"COMP 571","Biologically Inspired Computing",3,"List B"," "]
[null,"COMP 572","Neural Networks Units",3,"List B"," "]
[null,"COMP 575","Multi-Agent Systems",3,"List B"," "]
[null,"COMP 578","Data Mining",3,"List B"," "]
[null,null,null,null,null," "]
[null,"MATH 511","Functional Analysis",3,"Core List"," "]
[null,"MATH 512","Probabilistic Methods and Measure Theory",3,"Core List"," "]
[null,"MATH 513","Advanced Algebra",3,"Core List"," "]
[null,"MATH 599","Graduate Seminar",1,"Core List"," "]
[null,null,null,null,null," "]
[null,"MATH 597","Master Thesis"," ","Thesis List"," "]
[null,"MATH 598","Master Thesis"," ","Thesis List"," "]
[null,null,null,null,null," "]
[null,"MATH 594","Independent Studies",null,"Special"]
[null,"MATH 570","Combinatorics",null,"Special"]
[null,"MATH 582","Number Theory and Cryptography",null,"Special"]
[null,"MATH 584","Algebraic Geometry and Coding Theory",null,"Special"]
[null,"MATH 587","Markov Chains and Markov Processes",null,"Special"]
[null,"MATH 588","Stochastic Analysis",null,"Special"]
[null,"MATH 590","Graduate Topics in Mathematics",null,"Special"]
[null,"MATH 555","Actuarial Sciences",null,"Special"]
[null,"MATH 565","Research in Mathematics Education",null,"Special"]
[null,"PHYS 510","Advanced Image Analysis Techniques",null,"Special"]
[null,"PHYS 546","Pattern Recognition",null,"Special"]
[null,"COMP 554","Algorithms",null,"Special"]
[null,"COMP 569","Artificial Intelligence",null,"Special"]
[null,"COMP 571","Biologically Inspired Computing",null,"Special"]
[null,"COMP 572","Neural Networks Units",null,"Special"]
[null,"COMP 575","Multi-Agent Systems",null,"Special"]
[null,"COMP 578","Data Mining",null,"Special"]
[null,"MATH 511","Functional Analysis",null,"Special"]
[null,"MATH 512","Probabilistic Methods and Measure Theory",null,"Special"]
[null,"MATH 513","Advanced Algebra",null,"Special"]
[null,"MATH 599","Graduate Seminar",null,"Special"]
[null,"MATH 597","Master Thesis",null,"Special"]
[null,"MATH 598","Master Thesis",null,"Special"]
[]
[null,null,null,null,null,{"$f":"CONCATENATE(\"Replaces \",B6,\" \",C6,\" /       Approval Pending\")","v":"Replaces MATH 570 Combinatorics /       Approval Pending"}]
[null,null,null,null,null,"Replaces MATH 582 Number Theory and Cryptography /       Approval Pending"]
[null,null,null,null,null,"Replaces MATH 584 Algebraic Geometry and Coding Theory /       Approval Pending"]
[null,null,null,null,null,"Replaces MATH 587 Markov Chains and Markov Processes /       Approval Pending"]
[null,null,null,null,null,"Replaces MATH 588 Stochastic Analysis /       Approval Pending"]
[null,null,null,null,null,"Replaces MATH 590 Graduate Topics in Mathematics /       Approval Pending"]
[null,null,null,null,null,"Replaces MATH 555 Actuarial Sciences /       Approval Pending"]
[null,null,null,null,null,"Replaces MATH 565 Research in Mathematics Education /       Approval Pending"]
[null,null,null,null,null,"Replaces PHYS 510 Advanced Image Analysis Techniques /       Approval Pending"]
[null,null,null,null,null,"Replaces PHYS 546 Pattern Recognition /       Approval Pending"]
[null,null,null,null,null,"Replaces COMP 554 Algorithms /       Approval Pending"]
[null,null,null,null,null,"Replaces COMP 569 Artificial Intelligence /       Approval Pending"]
[null,null,null,null,null,"Replaces COMP 571 Biologically Inspired Computing /       Approval Pending"]
[null,null,null,null,null,"Replaces COMP 572 Neural Networks Units /       Approval Pending"]
[null,null,null,null,null,"Replaces COMP 575 Multi-Agent Systems /       Approval Pending"]
[null,null,null,null,null,"Replaces COMP 578 Data Mining /       Approval Pending"]
[null,null,null,null,null,{"$f":"CONCATENATE(\"Replaces \",B23,\" \",C23,\" /       Approval Pending\")","v":"Replaces MATH 511 Functional Analysis /       Approval Pending"}]
[null,null,null,null,null,{"$f":"CONCATENATE(\"Replaces \",B24,\" \",C24,\" /       Approval Pending\")","v":"Replaces MATH 512 Probabilistic Methods and Measure Theory /       Approval Pending"}]
[null,null,null,null,null,{"$f":"CONCATENATE(\"Replaces \",B25,\" \",C25,\" /       Approval Pending\")","v":"Replaces MATH 513 Advanced Algebra /       Approval Pending"}]